bitfinex/quotes_BTCUSD_20260315
["timestamp","ask_amount","ask_price","bid_price","bid_amount"]
[1773597512453,0.09535145,71827.0,71814.0,0.0002]
[1773597512999,0.09535145,71827.0,71814.0,0.06982417]
[1773597513223,0.09535145,71827.0,71814.0,0.0002]
[1773597513408,0.09535145,71827.0,71813.0,0.0695252]
[1773597514535,0.09395145,71825.0,71813.0,0.0695252]
[1773597515277,0.09395145,71825.0,71812.0,0.06982599]
[1773597516482,0.09395145,71824.0,71812.0,0.06982599]
[1773597517245,0.09395145,71824.0,71812.0,0.06982568]
[1773597519223,0.09395145,71824.0,71810.0,0.06962624]
[1773597519224,0.08838363,71823.0,71810.0,0.06962624]
[1773597520026,0.06961057,71829.0,71810.0,0.06962624]
[1773597520246,0.08838363,71828.0,71810.0,0.06962624]
[1773597520449,0.15799533,71827.0,71810.0,0.06962624]
[1773597520668,0.08838363,71826.0,71810.0,0.06962624]
[1773597522790,0.06961304,71826.0,71810.0,0.06962624]
[1773597522995,0.08838363,71825.0,71810.0,0.06962624]
[1773597524944,0.06961304,71826.0,71810.0,0.06962624]
[1773597524945,0.05812245,71820.0,71810.0,0.06962624]
[1773597525137,0.08838363,71822.0,71810.0,0.06962624]
[1773597526533,0.08838363,71822.0,71810.0,0.06982624]
[1773597529573,0.08838363,71822.0,71808.0,0.03772712]
[1773597530108,0.08838363,71825.0,71808.0,0.03772712]
[1773597530772,0.08838363,71825.0,71809.0,0.06962818]
[1773597531183,0.08838363,71824.0,71809.0,0.06962818]
[1773597531574,0.08838363,71824.0,71809.0,0.06972218]
[1773597532898,0.06961473,71824.0,71809.0,9.4e-05]
[1773597533111,0.09061302,71819.0,71809.0,9.4e-05]
[1773597533782,0.09061302,71819.0,71807.0,0.0014]
[1773597534006,0.09061302,71819.0,71806.0,0.0016]
[1773597534328,0.09061302,71819.0,71808.0,0.0002]
[1773597534946,0.06962042,71818.0,71808.0,0.0002]
[1773597535147,0.09061302,71817.0,71808.0,0.0002]
[1773597535436,0.09061302,71817.0,71806.0,0.0002]
[1773597536894,0.06962236,71816.0,71803.0,0.0014]
[1773597537207,0.09061302,71812.0,71803.0,0.0014]
[1773597537410,0.09061302,71812.0,71802.0,0.0002]
[1773597537610,0.09061302,71812.0,71803.0,0.0014]
[1773597538180,0.09061302,71812.0,71802.0,0.0016]
[1773597538358,0.09061302,71812.0,71802.0,0.0005548]
[1773597538582,0.09061302,71812.0,71802.0,0.0019548]
[1773597538790,0.09061302,71812.0,71802.0,0.0005548]
[1773597539195,0.09061302,71810.0,71802.0,0.0005548]
[1773597540039,0.09061302,71810.0,71798.0,0.0014]
[1773597540255,0.09096802,71810.0,71798.0,0.0014]
[1773597541226,0.06962915,71809.0,71798.0,0.0014]
[1773597541433,0.09061302,71808.0,71798.0,0.0014]
[1773597541637,0.09061302,71808.0,71795.0,0.0016]
[1773597542222,0.09201302,71808.0,71798.0,0.0002]
[1773597542554,0.09201302,71808.0,71795.0,0.0016]
[1773597543068,0.09201302,71808.0,71795.0,0.0002]
[1773597543268,0.06963109,71807.0,71794.0,0.0014]
[1773597543473,0.09061302,71806.0,71794.0,0.0014]
[1773597544150,0.09061302,71806.0,71792.0,0.0014]
[1773597544929,0.06998341,71810.0,71792.0,0.03836274]
[1773597545436,0.06998341,71810.0,71793.0,0.06964467]
[1773597545636,0.09061302,71815.0,71794.0,0.03670551]
[1773597545830,0.06976915,71817.0,71800.0,0.05812245]
[1773597546034,0.06976915,71817.0,71799.0,0.03670551]
[1773597546035,0.06976915,71817.0,71801.0,0.0014]
[1773597546450,0.16038217,71817.0,71801.0,0.0014]
[1773597546855,0.06976915,71817.0,71801.0,0.0014]
[1773597547041,0.09061302,71816.0,71801.0,0.0014]
[1773597547446,0.06976915,71817.0,71801.0,0.03784952]
[1773597547642,0.06976915,71817.0,71802.0,0.06963594]
[1773597548972,0.16038217,71817.0,71802.0,0.06963594]
[1773597549398,0.06976915,71817.0,71802.0,0.06963594]
[1773597550158,0.0001469,71817.0,71802.0,0.06963594]
[1773597550496,0.09075992,71817.0,71802.0,0.06963594]
[1773597550795,0.09075992,71817.0,71802.0,0.06983594]
[1773597552569,0.05812245,71812.0,71795.0,5e-05]
[1773597552764,0.09061302,71811.0,71796.0,0.0014]
[1773597554751,0.06962666,71812.0,71797.0,0.06964079]
[1773597554890,0.06962666,71812.0,71797.0,0.10403371]
[1773597555086,0.06962666,71812.0,71797.0,0.06964079]
[1773597555291,0.16023968,71812.0,71797.0,0.06964079]
[1773597555499,0.06962666,71812.0,71797.0,0.06964079]
[1773597555696,0.09061302,71811.0,71797.0,0.06964079]
[1773597556857,0.09061302,71809.0,71798.0,0.0014]
[1773597559496,0.09061302,71809.0,71799.0,0.06963885]
[1773597560992,0.09061302,71808.0,71799.0,0.06963885]
[1773597562256,0.09061302,71808.0,71798.0,0.0014]
[1773597563148,0.16024322,71808.0,71798.0,0.0014]
[1773597563350,0.08541086,71807.0,71798.0,0.0014]
[1773597563685,0.08541086,71807.0,71795.0,0.06964249]
[1773597563885,0.08541086,71807.0,71796.0,0.0014]
[1773597564295,0.15504227,71807.0,71797.0,0.0014]
[1773597564753,0.15504227,71807.0,71795.0,0.06964249]
[1773597564913,0.15504227,71807.0,71798.0,0.0014]
[1773597565119,0.08541086,71806.0,71798.0,0.0014]
[1773597565919,0.06963087,71808.0,71798.0,0.0014]
[1773597566195,0.06984684,71812.0,71800.0,0.06963788]
[1773597566196,0.00022001,71812.0,71800.0,0.06963788]
[1773597566575,0.00022001,71812.0,71794.0,0.000555]
[1773597566784,0.00022001,71812.0,71795.0,5e-05]
[1773597566785,0.08541086,71809.0,71795.0,5e-05]
[1773597567204,0.08541086,71809.0,71794.0,0.000555]
[1773597567489,0.08681086,71809.0,71795.0,0.0014]
[1773597567692,0.00022001,71808.0,71795.0,0.0014]
[1773597568934,0.06985014,71808.0,71796.0,0.06964176]
[1773597569067,0.06985014,71808.0,71797.0,0.06303582]
[1773597569486,0.16651236,71820.0,71796.0,0.06964176]
[1773597569685,0.00022001,71820.0,71810.0,0.05816162]
[1773597570065,0.00022001,71820.0,71811.0,0.0014]
[1773597570250,0.00022001,71824.0,71812.0,0.06280255]
[1773597571170,0.00022001,71824.0,71813.0,0.06962527]
[1773597571759,0.0698352,71824.0,71813.0,0.06962527]
[1773597573449,0.08541086,71823.0,71812.0,0.06962527]
[1773597573721,0.08541086,71823.0,71813.0,0.0014]
[1773597574530,0.08541086,71823.0,71814.0,0.0014]
[1773597575674,0.06961626,71823.0,71814.0,0.07102361]
[1773597575871,0.08541086,71822.0,71814.0,0.07102361]
[1773597581323,0.15502784,71822.0,71814.0,0.07102361]
[1773597582036,0.08541086,71822.0,71814.0,0.07102361]
[1773597583944,0.08541086,71821.0,71814.0,0.07102361]
[1773597584148,0.08541086,71821.0,71814.0,0.0014]
[1773597584670,0.08541086,71821.0,71814.0,0.07102412]
[1773597584873,0.06983566,71823.0,71815.0,0.0014]
[1773597585051,0.08541086,71822.0,71815.0,0.0014]
[1773597586366,0.15502747,71822.0,71815.0,0.0014]
[1773597586753,0.08541086,71822.0,71815.0,0.0014]
[1773597587479,0.08541086,71822.0,71814.0,0.06982412]
[1773597587685,0.08541086,71822.0,71815.0,0.0014]
[1773597588243,0.06961718,71822.0,71815.0,0.0014]
[1773597588377,0.08541086,71821.0,71815.0,0.0014]
[1773597588584,0.08541086,71821.0,71814.0,0.0014]
[1773597590272,0.06961849,71820.0,71807.0,0.06963109]
[1773597590469,0.15502935,71820.0,71812.0,0.0014]
[1773597591206,0.08541086,71819.0,71807.0,0.06963109]
[1773597591418,0.08541086,71819.0,71808.0,0.0014]
[1773597591616,0.08541086,71819.0,71806.0,0.0002]
[1773597591818,0.08541086,71819.0,71807.0,0.0014]
[1773597592424,0.06962042,71818.0,71807.0,0.0014]
[1773597592627,0.15012007,71818.0,71807.0,0.0014]
[1773597593418,0.08049965,71817.0,71807.0,0.0014]
[1773597593620,0.08049965,71817.0,71814.0,0.0002]
[1773597593827,0.08049965,71817.0,71807.0,0.0014]
[1773597594364,0.06962236,71816.0,71806.0,0.0002]
[1773597594569,0.06962236,71816.0,71807.0,0.0014]
[1773597594570,0.08049965,71815.0,71807.0,0.0014]
[1773597596749,0.0696243,71814.0,71807.0,0.0014]
[1773597597802,0.15012395,71814.0,71807.0,0.0014]
[1773597598710,0.0696243,71814.0,71807.0,0.0014]
[1773597598876,0.08049965,71813.0,71806.0,0.0002]
[1773597599094,0.08049965,71813.0,71805.0,0.0014]
[1773597600589,0.0696243,71814.0,71805.0,0.0014]
[1773597600590,0.00022001,71823.0,71805.0,0.03780726]
[1773597600786,0.22467398,71830.0,71810.0,0.05816162]
[1773597600787,0.00022001,71830.0,71810.0,0.05816162]
[1773597601040,0.00022001,71830.0,71806.0,0.06963206]
[1773597601041,0.00088591,71835.0,71821.0,0.0362004]
[1773597601345,0.00022001,71839.0,71823.0,0.0362004]
[1773597601563,0.16629235,71855.0,71832.0,0.05816162]
[1773597601767,0.08054965,71866.0,71846.0,0.03602052]
[1773597601768,0.06957489,71865.0,71846.0,0.03602052]
[1773597601964,0.06957489,71865.0,71826.0,0.16489859]
[1773597601965,0.06957489,71865.0,71847.0,0.0014]
[1773597602183,0.15007454,71865.0,71848.0,0.0014]
[1773597602350,0.15012894,71865.0,71848.0,0.0014]
[1773597602791,0.15012894,71865.0,71849.0,0.06959039]
[1773597603146,0.06956906,71872.0,71849.0,0.06959039]
[1773597603147,0.06956673,71874.0,71851.0,0.03618894]
[1773597603347,0.06956328,71877.0,71861.0,0.03613894]
[1773597603563,0.06956328,71877.0,71863.0,0.03613894]
[1773597603970,0.0002026,71878.0,71862.0,0.0014]
[1773597604171,0.0002026,71878.0,71863.0,0.0377235]
[1773597604569,0.0002026,71878.0,71860.0,0.05816162]
[1773597604570,0.08049965,71876.0,71860.0,0.0014]
[1773597604780,0.08049965,71874.0,71860.0,0.0014]
[1773597605007,0.08049965,71874.0,71858.0,0.0695811]
[1773597605008,0.08049965,71874.0,71856.0,0.06958325]
[1773597605252,0.08049965,71874.0,71861.0,0.0014]
[1773597605468,0.08049965,71874.0,71862.0,0.0014]
[1773597605823,0.08049965,71874.0,71856.0,0.06958325]
[1773597605992,0.08049965,71874.0,71857.0,0.0014]
[1773597606967,0.08049965,71874.0,71858.0,0.06958167]
[1773597606968,0.06956715,71873.0,71858.0,0.06958167]
[1773597607894,0.06956715,71873.0,71859.0,0.08402945]
[1773597608101,0.06956521,71875.0,71859.0,0.08402945]
[1773597608777,0.06956908,71871.0,71842.0,0.06959667]
[1773597608978,0.06956908,71871.0,71855.0,0.0014]
[1773597608979,0.08049965,71870.0,71855.0,0.0014]
[1773597609182,0.08049965,71870.0,71844.0,0.08402945]
[1773597609384,0.08049965,71869.0,71852.0,0.0014]
[1773597609656,0.08049965,71869.0,71845.0,0.08402945]
[1773597609875,0.0014,71868.0,71851.0,0.00147977]
[1773597610050,0.06956908,71871.0,71851.0,0.00147977]
[1773597610051,0.08049965,71867.0,71851.0,0.00147977]
[1773597610562,0.08049965,71865.0,71848.0,0.0014]
[1773597610698,0.08049965,71865.0,71848.0,9.488e-05]
[1773597610905,0.06957586,71864.0,71848.0,9.488e-05]
[1773597611175,0.08049965,71863.0,71843.0,0.0014]
[1773597611351,0.08049965,71863.0,71843.0,0.00010668]
[1773597611533,0.06957586,71864.0,71839.0,0.0002026]
[1773597611534,0.08049965,71859.0,71839.0,0.0002026]
[1773597611919,0.08049965,71857.0,71839.0,0.0003093]
[1773597612120,0.08049965,71857.0,71832.0,0.0014]
[1773597612273,0.08049965,71857.0,71832.0,0.00150679]
[1773597612474,0.08049965,71855.0,71832.0,0.00150679]
[1773597612675,0.08049965,71855.0,71833.0,0.08402945]
[1773597613686,0.08049965,71853.0,71833.0,0.15363523]
[1773597613888,0.08049965,71853.0,71833.0,0.08402945]
[1773597614109,0.08049965,71853.0,71832.0,0.00150679]
[1773597614360,0.08049965,71853.0,71832.0,0.0711134]
[1773597614841,0.08049965,71853.0,71832.0,0.15514285]
[1773597615050,0.08049965,71853.0,71832.0,0.0711134]
[1773597615341,0.08049965,71853.0,71832.0,0.00010679]
[1773597615641,0.06958748,71852.0,71833.0,0.0014]
[1773597615851,0.08049965,71851.0,71833.0,0.0014]
[1773597616082,0.08049965,71849.0,71833.0,0.0014]
[1773597616300,0.08049965,71849.0,71832.0,0.00030679]
[1773597616466,0.0014,71850.0,71833.0,0.0014]
[1773597616467,0.08049965,71847.0,71833.0,0.0014]
[1773597617240,0.08049965,71847.0,71832.0,0.00030679]
[1773597617496,0.08049965,71847.0,71828.0,0.0016026]
[1773597617723,0.08049965,71845.0,71828.0,0.0017094]
[1773597617983,0.08049965,71843.0,71828.0,0.0017094]
[1773597618620,0.08049965,71843.0,71828.0,0.0003094]
[1773597619570,0.08049965,71843.0,71828.0,0.06991978]
[1773597620138,0.06959717,71842.0,71828.0,0.0003094]
[1773597620471,0.15009682,71842.0,71828.0,0.0003094]
[1773597620864,0.08049965,71841.0,71828.0,0.0003094]
[1773597621522,0.06959717,71842.0,71828.0,0.06991967]
[1773597621832,0.06959717,71842.0,71828.0,0.0003094]
[1773597622333,0.06959717,71842.0,71829.0,0.08615436]
[1773597623290,0.06959717,71842.0,71828.0,0.07011931]
[1773597623526,0.08768022,71841.0,71829.0,0.0014]
[1773597623733,0.08768022,71841.0,71829.0,0.00150686]
[1773597624192,0.08768022,71841.0,71824.0,0.0016]
[1773597624346,0.0695991,71840.0,71824.0,0.07132135]
[1773597624758,0.0695991,71840.0,71824.0,0.00170695]
[1773597624983,0.08768022,71839.0,71824.0,0.00170695]
[1773597625165,0.08768022,71837.0,71824.0,0.00170695]
[1773597626640,0.08768022,71837.0,71807.0,0.06963097]
[1773597626641,0.08768022,71835.0,71807.0,0.06963097]
[1773597626812,0.06960298,71836.0,71810.0,0.00010702]
[1773597626813,0.05814908,71830.0,71810.0,0.00010702]
[1773597627053,0.08908022,71829.0,71810.0,0.00010702]
[1773597628500,0.08768022,71826.0,71810.0,0.00010702]
[1773597629992,0.08768022,71826.0,71810.0,0.00030702]
[1773597630885,0.06961364,71825.0,71810.0,0.00030702]
[1773597632022,0.08768022,71823.0,71801.0,0.0014]
[1773597632322,0.08768022,71821.0,71795.0,0.00025]
[1773597632522,0.08768022,71821.0,71802.0,0.000355]
[1773597632890,0.08768022,71819.0,71794.0,0.0002]
[1773597633097,0.08803692,71819.0,71794.0,0.0002]
[1773597633293,0.08803692,71819.0,71794.0,0.08635436]
[1773597633501,0.08803692,71819.0,71794.0,0.0002]
[1773597635037,0.08768022,71817.0,71794.0,0.0002]
[1773597635235,0.08768022,71815.0,71794.0,0.0002]
[1773597637045,0.08768022,71815.0,71792.0,0.0002]
[1773597637046,0.0696243,71814.0,71792.0,0.0002]
[1773597637247,0.08908022,71813.0,71792.0,0.0002]
[1773597637455,0.0014,71812.0,71793.0,0.08615436]
[1773597637769,0.08768022,71811.0,71794.0,0.0002]
[1773597637973,0.08768022,71811.0,71792.0,0.0014]
[1773597638171,0.08768022,71811.0,71786.0,0.0002]
[1773597638347,0.08768022,71811.0,71787.0,0.0014]
[1773597638544,0.08768022,71811.0,71788.0,0.0014]
[1773597638790,0.08768022,71811.0,71784.0,0.08275436]
[1773597639208,0.08768022,71806.0,71785.0,0.07105184]
[1773597639538,0.0014,71805.0,71786.0,0.08615436]
[1773597640045,0.08768022,71804.0,71785.0,0.06965184]
[1773597640812,0.08768022,71804.0,71786.0,0.08615436]
[1773597641178,0.06963497,71803.0,71787.0,0.06965049]
[1773597641356,0.06963497,71803.0,71787.0,0.15580485]
[1773597641506,0.06963497,71803.0,71787.0,0.08615436]
[1773597642936,0.08768022,71802.0,71787.0,0.0014]
[1773597643308,0.06963691,71801.0,71785.0,0.06965181]
[1773597643508,0.06963691,71801.0,71786.0,0.0014]
[1773597643708,0.06914949,71801.0,71786.0,0.0014]
[1773597645393,0.06914949,71801.0,71787.0,0.0002]
[1773597646721,0.08768022,71800.0,71787.0,0.0002]
[1773597647568,0.08768022,71798.0,71787.0,0.0002]
[1773597648757,0.08768022,71798.0,71779.0,0.06985804]
[1773597648758,0.08768022,71798.0,71779.0,0.0002]
[1773597649036,0.05821239,71790.0,71779.0,0.0002]
[1773597649251,0.08768022,71789.0,71779.0,0.0002]
[1773597649803,0.06964952,71788.0,71779.0,0.0002]
[1773597650250,0.070006,71788.0,71779.0,0.0002]
[1773597650806,0.070006,71788.0,71779.0,0.0016]
[1773597652198,0.07022601,71788.0,71779.0,0.0016]
[1773597652408,0.07022601,71788.0,71779.0,0.0002]
[1773597652711,0.15462928,71788.0,71779.0,0.0002]
[1773597653567,0.08440327,71787.0,71779.0,0.0002]
[1773597654438,0.06965146,71786.0,71779.0,0.0002]
[1773597655612,0.06965146,71786.0,71769.0,0.08171588]
[1773597655783,0.07022601,71788.0,71771.0,0.08171588]
[1773597655784,0.07022613,71788.0,71771.0,0.08171588]
[1773597656143,0.06964964,71788.0,71771.0,0.08171588]
[1773597656565,0.06964273,71795.0,71773.0,0.04174224]
[1773597656817,0.06964273,71795.0,71773.0,0.04209872]
[1773597656942,0.05821239,71790.0,71773.0,0.04209872]
[1773597657147,0.14261566,71790.0,71774.0,0.0014]
[1773597657888,0.08440327,71789.0,71775.0,0.0014]
[1773597658735,0.06964952,71788.0,71776.0,0.06966116]
[1773597659969,0.08440327,71787.0,71777.0,0.0014]
[1773597660145,0.08580327,71787.0,71774.0,0.0002]
[1773597660319,0.05821239,71783.0,71774.0,0.0002]
[1773597660518,0.08440327,71782.0,71774.0,0.0002]
[1773597660719,0.06965631,71781.0,71774.0,0.0002]
[1773597661787,0.0014,71787.0,71775.0,0.04184661]
[1773597662172,0.06964273,71795.0,71774.0,0.06966307]
[1773597662391,0.08897547,71794.0,71774.0,0.06966307]
[1773597662746,0.05821239,71790.0,71774.0,0.06966307]
[1773597662963,0.08897547,71788.0,71775.0,0.0014]
[1773597663146,0.08933195,71788.0,71776.0,0.0014]
[1773597663348,0.08933195,71788.0,71774.0,0.0024]
[1773597663713,0.08933195,71788.0,71774.0,0.0014]
[1773597665237,0.08897547,71786.0,71774.0,0.0014]
[1773597665666,0.08897547,71786.0,71773.0,0.0014]
[1773597667986,0.08897547,71784.0,71773.0,0.07106358]
[1773597668187,0.08897547,71784.0,71774.0,0.0002]
[1773597670085,0.06965437,71783.0,71774.0,0.06986284]
[1773597670442,0.08897547,71782.0,71774.0,0.0002]
[1773597670975,0.08897547,71782.0,71770.0,0.0014]
[1773597671182,0.08897547,71782.0,71771.0,0.0014]
[1773597671338,0.08897547,71782.0,71772.0,0.0014]
[1773597672740,0.06965081,71787.0,71772.0,0.0014]
[1773597673108,0.06965146,71786.0,71783.0,0.5]
[1773597675330,0.07022795,71788.0,71783.0,0.5]
[1773597675331,0.1666711,71800.0,71783.0,0.5]
[1773597675505,0.06964087,71797.0,71783.0,0.56976052]
[1773597675712,0.00162001,71805.0,71783.0,0.56976052]
[1773597675713,0.08877729,71823.0,71786.0,0.05821239]
[1773597675883,0.06962311,71816.0,71790.0,0.05821239]
[1773597676061,0.06962279,71816.0,71791.0,0.0014]
[1773597676298,0.06962351,71815.0,71791.0,0.0014]
[1773597676497,0.06967551,71813.0,71792.0,0.00039563]
[1773597676723,0.06967676,71812.0,71792.0,0.00039563]
[1773597676959,0.15819827,71812.0,71793.0,0.07104467]
[1773597677359,0.06967676,71812.0,71793.0,0.07104467]
[1773597677578,0.06967676,71812.0,71794.0,0.00128358]
[1773597678735,0.15865223,71812.0,71793.0,0.07104467]
[1773597679319,0.08897547,71811.0,71793.0,0.07064467]
[1773597679520,0.08897547,71811.0,71794.0,0.0014]
[1773597680579,0.08897547,71811.0,71793.0,0.07064467]
[1773597680722,0.08897547,71811.0,71794.0,0.0014]
[1773597681326,0.08895782,71809.0,71795.0,0.06964273]
[1773597682326,0.08895782,71809.0,71794.0,0.07104336]
[1773597683054,0.08895782,71809.0,71794.0,0.0014]
[1773597683254,0.06963012,71808.0,71794.0,0.07104367]
[1773597683569,0.08875345,71807.0,71794.0,0.0014]
[1773597683766,0.08875345,71807.0,71793.0,0.06964455]
[1773597684029,0.08875345,71807.0,71794.0,0.0014]
[1773597684322,0.08875345,71807.0,71782.0,0.06965472]
[1773597684323,0.08875345,71807.0,71790.0,0.0014]
[1773597684532,0.08875345,71807.0,71783.0,0.56976122]
[1773597684733,0.08875345,71807.0,71788.0,0.0014]
[1773597684951,0.08875345,71807.0,71786.0,0.0014]
[1773597685325,0.08852968,71805.0,71785.0,0.06965156]
[1773597685532,0.08852968,71803.0,71786.0,0.0014]
[1773597686184,0.08852968,71803.0,71785.0,0.0014]
[1773597687716,0.08832948,71801.0,71785.0,0.0014]
[1773597688763,0.08832948,71801.0,71783.0,0.50150708]
[1773597689176,0.08813106,71799.0,71783.0,0.50010708]
[1773597689701,0.06963982,71798.0,71783.0,0.50010708]
[1773597689908,0.08953106,71797.0,71783.0,0.50010708]
[1773597691922,0.08793441,71795.0,71783.0,0.50010708]
[1773597692634,0.08793441,71795.0,71783.0,0.32818146]
[1773597694298,0.08774034,71810.0,71784.0,0.07054529]
[1773597694511,0.08774034,71809.0,71784.0,0.0696534]
[1773597694713,0.06962818,71810.0,71786.0,0.00127833]
[1773597694919,0.0014,71809.0,71786.0,0.00127833]
[1773597695504,0.08894711,71809.0,71786.0,0.00127833]
[1773597695900,0.06962818,71810.0,71786.0,0.00127833]
[1773597696245,0.06962818,71810.0,71787.0,0.06965049]
[1773597696459,0.06962818,71810.0,71788.0,0.00207864]
[1773597697565,0.00043751,71811.0,71788.0,0.00207864]
[1773597697764,0.07006491,71811.0,71787.0,0.06965049]
[1773597698018,0.00022001,71809.0,71787.0,0.06965049]
[1773597698930,0.06984955,71809.0,71787.0,0.06965049]
[1773597699180,0.00022001,71809.0,71787.0,0.06965049]
[1773597699750,0.06984954,71809.0,71787.0,0.07065049]
[1773597700121,0.06984954,71809.0,71787.0,0.07165049]
[1773597700322,0.06984954,71809.0,71787.0,0.07065049]
[1773597701453,0.06984954,71809.0,71787.0,0.07165049]
[1773597701876,0.06984954,71809.0,71787.0,0.07065049]
[1773597702090,0.06984954,71809.0,71787.0,0.06965049]
[1773597702237,0.06984954,71809.0,71787.0,0.07065049]
[1773597702442,0.06984954,71809.0,71787.0,0.07165049]
[1773597703139,0.06984954,71809.0,71788.0,0.13731494]
[1773597703489,0.06984954,71809.0,71789.0,0.13731494]
[1773597703820,0.06984954,71809.0,71790.0,0.13731494]
[1773597703999,0.06984954,71809.0,71791.0,0.13871494]
[1773597704158,0.00022001,71809.0,71792.0,0.13731494]
[1773597704915,0.00022001,71809.0,71793.0,0.06964467]
[1773597705267,0.06984959,71809.0,71794.0,0.1373899]
[1773597705467,0.06984959,71809.0,71793.0,0.06964467]
[1773597705689,0.06984959,71809.0,71794.0,0.1373899]
[1773597705889,0.06984959,71809.0,71793.0,0.06964467]
[1773597706091,0.06984959,71809.0,71794.0,0.1373899]
[1773597706296,0.06984959,71809.0,71793.0,0.07064467]
[1773597706469,0.06984959,71809.0,71794.0,0.13739282]
[1773597706674,0.06984959,71809.0,71793.0,0.06964467]
[1773597706908,0.06984959,71809.0,71795.0,0.06964273]
[1773597709339,0.06984959,71809.0,71794.0,0.06964273]
[1773597709722,0.08753063,71808.0,71793.0,0.06964467]
[1773597709931,0.08893063,71808.0,71792.0,0.07104467]
[1773597710644,0.08893063,71808.0,71792.0,0.06964467]
[1773597710816,0.08893063,71808.0,71792.0,0.07104467]
[1773597711195,0.06963109,71807.0,71786.0,0.06965142]
[1773597711343,0.08734373,71806.0,71792.0,0.0014]
[1773597711719,0.08734373,71806.0,71784.0,0.0710534]
[1773597711917,0.08734373,71806.0,71785.0,0.13744851]
[1773597712138,0.08734373,71806.0,71786.0,0.13744851]
[1773597712350,0.08734373,71806.0,71787.0,0.13884851]
[1773597712547,0.08734373,71806.0,71788.0,0.13744851]
[1773597712751,0.08734373,71806.0,71789.0,0.13744851]
[1773597712979,0.08734373,71806.0,71790.0,0.0014]
[1773597713330,0.08715836,71804.0,71791.0,0.07104661]
[1773597713747,0.06963303,71805.0,71791.0,0.06964661]
[1773597713950,0.06963303,71805.0,71791.0,0.07104661]
[1773597714182,0.06963303,71805.0,71792.0,0.0002]
[1773597714641,0.06963303,71805.0,71792.0,0.0016]
[1773597714806,0.15657799,71805.0,71792.0,0.0016]
[1773597716272,0.15657799,71805.0,71793.0,0.06964467]
[1773597716610,0.06963303,71807.0,71793.0,0.06964467]
[1773597716841,0.00145,71813.0,71793.0,0.06964467]
[1773597716842,0.00022001,71820.0,71793.0,0.06964467]
[1773597717040,0.06962144,71817.0,71800.0,0.05816149]
[1773597717200,0.15638471,71817.0,71801.0,0.0014]
[1773597717406,0.15638471,71817.0,71802.0,0.0014]
[1773597717710,0.06962144,71817.0,71802.0,0.00125045]
[1773597717916,0.06962144,71817.0,71803.0,0.0014]
[1773597718307,0.06962144,71817.0,71804.0,0.069634]
[1773597719557,0.06962144,71817.0,71804.0,0.06948443]
[1773597719737,0.08658304,71816.0,71804.0,0.07088443]
[1773597720134,1e-08,71817.0,71804.0,0.07088443]
[1773597722539,1e-08,71817.0,71805.0,0.13746852]
[1773597722741,1e-08,71817.0,71804.0,0.07088443]
[1773597722947,1e-08,71817.0,71805.0,0.13745566]
[1773597723093,1e-08,71817.0,71804.0,0.07088443]
[1773597723094,1e-08,71817.0,71806.0,0.13745566]
[1773597723307,1e-08,71817.0,71807.0,0.13745566]
[1773597723470,1e-08,71817.0,71808.0,0.13745566]
[1773597723678,1e-08,71817.0,71809.0,0.13745566]
[1773597723881,1e-08,71817.0,71810.0,0.0014]
[1773597725284,1e-08,71817.0,71811.0,0.06962721]
[1773597725620,0.06505764,71821.0,71811.0,0.06962721]
[1773597725825,0.06966621,71823.0,71811.0,0.06962721]
[1773597726824,0.08631514,71822.0,71811.0,0.06962721]
[1773597727029,0.06966621,71823.0,71811.0,0.06962721]
[1773597727543,0.08631514,71822.0,71811.0,0.06962721]
[1773597729312,0.15593258,71822.0,71812.0,0.0014]
[1773597730029,0.00022001,71817.0,71812.0,0.0014]
[1773597731611,0.00022001,71817.0,71812.0,0.07102598]
[1773597732211,0.08598689,71816.0,71811.0,0.06962714]
[1773597732780,0.00022001,71817.0,71811.0,0.06962714]
[1773597735218,0.08661921,71817.0,71811.0,0.06962721]
[1773597735427,0.15624096,71817.0,71809.0,0.03524344]
[1773597735878,0.0863992,71816.0,71809.0,0.03524344]
[1773597736295,0.0863992,71816.0,71808.0,0.00010708]
[1773597736296,0.15602189,71816.0,71808.0,0.00010708]
[1773597736972,0.06962269,71816.0,71804.0,0.0002]
[1773597737175,0.08622515,71815.0,71805.0,0.13746829]
[1773597737384,0.08622515,71815.0,71804.0,0.00030729]
[1773597737527,0.08622515,71809.0,71796.0,0.0016]
[1773597737738,0.08622515,71809.0,71797.0,0.13752216]
[1773597737943,0.08622515,71809.0,71796.0,0.00170667]
[1773597738289,0.08622515,71809.0,71797.0,0.13749632]
[1773597738509,0.08650352,71807.0,71797.0,0.06964079]
[1773597739445,0.08650352,71807.0,71796.0,0.06994809]
[1773597740138,0.08650352,71807.0,71796.0,0.00030667]
[1773597740427,0.08650352,71807.0,71794.0,0.06964344]
[1773597740645,0.08633157,71805.0,71794.0,0.06969784]
[1773597740989,0.08633157,71805.0,71794.0,5.44e-05]
[1773597742502,0.069634,71804.0,71789.0,0.06984841]
[1773597742754,0.069634,71804.0,71789.0,0.0002]
[1773597742755,0.05817519,71800.0,71789.0,0.0002]
[1773597742964,0.08616044,71799.0,71789.0,0.0002]
[1773597743356,0.08616044,71799.0,71787.0,0.0014]
[1773597743734,0.08616044,71799.0,71786.0,0.06985123]
[1773597743947,0.08616044,71799.0,71786.0,0.07125123]
[1773597744717,0.06963982,71798.0,71786.0,0.07125123]
[1773597745584,0.15561882,71798.0,71786.0,0.07125123]
[1773597746664,0.15561882,71798.0,71786.0,0.07157463]
[1773597747735,0.15561882,71798.0,71786.0,0.07017463]
[1773597747936,0.08581297,71797.0,71787.0,0.0014]
[1773597748396,0.0014,71802.0,71787.0,0.0014]
[1773597748397,0.06963088,71808.0,71788.0,0.13737082]
[1773597748630,0.06963088,71808.0,71789.0,0.13737082]
[1773597748832,0.0014,71816.0,71788.0,0.0015507]
[1773597748833,0.08564451,71806.0,71788.0,0.0015507]
[1773597749040,0.06963313,71805.0,71788.0,0.00300353]
[1773597749214,0.06972841,71804.0,71788.0,0.00300353]
[1773597750236,0.06972841,71804.0,71789.0,0.06964855]
[1773597750731,0.06972841,71804.0,71789.0,0.06979925]
[1773597751413,0.15609965,71804.0,71789.0,0.06979925]
[1773597751617,0.08637124,71803.0,71789.0,0.06979925]
[1773597752373,0.05817519,71800.0,71789.0,0.0001507]
[1773597752576,0.08637124,71799.0,71789.0,0.0001507]
[1773597754490,0.07103847,71800.0,71789.0,0.0001507]
[1773597755665,0.15706948,71800.0,71789.0,0.0001507]
[1773597756620,0.07103847,71800.0,71789.0,0.0001507]
[1773597756936,0.08586272,71799.0,71789.0,0.0001507]
[1773597757366,0.08586272,71799.0,71789.0,0.0003507]
[1773597758711,0.06963982,71798.0,71790.0,0.06964758]
[1773597758886,0.08569562,71797.0,71790.0,0.06964758]
[1773597759407,0.08569562,71797.0,71789.0,0.0003507]
[1773597759614,0.08569562,71797.0,71790.0,0.06964758]